Cogmind - Beta 11.1 @@@ ROGUE MODE // 2022.06.05 @ 13:13:12 Player: Lyra Result: Destroyed self with Improved Grenade Launcher Performance ------------- Evolutions (3) 1500 Regions Visited (4) 800 Robots Destroyed (125) 625 Value Destroyed (4081) 4081 Prototype IDs (5) 100 Alien Tech Used (0) 0 Bonus (344) 344 TOTAL SCORE: 7450 Bonus ------- High Alert Combat Kills 344 Cogmind --------- Core Integrity 0/700 Matter 257/300 Energy 22/100 System Corruption 13% Temperature Cool (18) Movement Core (450) Ox8 Location -7/Factory Parts ------- > --- POWER (1) -------- (None) > --- PROPULSION (4) --- (None) > --- UTILITY (6) ------ Coolant Injector Large Storage Unit Improved Signal Interpreter > --- WEAPON (2) ------- Improved Grenade Launcher > --- INVENTORY (15) --- Cooling System Compact Battery (200) Structural Scanner Improved Sensor Array Transport Network Coupler Weapon Cycler Improved Light Armor Plating Improved Shield Generator System Shield Gatling Laser Gatling Laser Gauss Cannon Powered Hammer Peak State ------------ > --- POWER ------------ Micro Nuclear Core > --- PROPULSION ------- Improved Carbon-fiber Leg Improved Carbon-fiber Leg Improved Titanium Leg Improved Titanium Leg > --- UTILITY ---------- Cooling System Large Storage Unit Advanced Visual Processing Unit Improved Sensor Array Improved Signal Interpreter Improved Medium Armor Plating > --- WEAPON ----------- Gatling Laser Gatling Laser > --- INVENTORY -------- Coolant Injector Compact Battery Structural Scanner Transport Network Coupler Particle Charger Weapon Cycler Hardened Medium Armor Plating Improved Light Armor Plating Reactive Plating Improved Shield Generator Gatling Laser Gatling Laser Gauss Cannon Improved Grenade Launcher Katana [Rating: 48] Favorites ----------- Power Light Nuclear Core Engine Ion Engine Power Core Light Nuclear Core Propulsion Improved Titanium Leg Treads Light Treads Leg Improved Titanium Leg Utility Large Storage Unit Device Cooling System Storage Large Storage Unit Processor Improved Signal Interpreter Protection Hardened Light Armor Plating Weapon Gatling Laser Energy Gun Gatling Laser Energy Cannon Advanced Beam Cannon Ballistic Gun Assault Rifle Ballistic Cannon Mini Assault Cannon Launcher Improved Grenade Launcher Slashing Weapon Katana Build | -11 -10 -9 -8 -7 ------- Run | Scr Mat Mat Mat Fac Slots Evolved 6 | . . 2 2 2 Power . | . . . . . Propulsion 2 | . . 1 . 1 Utility 4 | . . 1 2 1 Weapon . | . . . . . Parts Attached 114 | . 9 17 26 62 Power 11 | . . 3 1 7 Engine 4 | . . 3 . 1 Core 7 | . . . 1 6 Reactor . | . . . . . Propulsion 33 | . 3 6 8 16 Treads 3 | . . 2 1 . Leg 30 | . 3 4 7 16 Wheel . | . . . . . Hover . | . . . . . Flight . | . . . . . Utility 36 | . 2 5 7 22 Device 16 | . . 2 2 12 Storage 2 | . 1 1 . . Processor 4 | . . 1 1 2 Hackware . | . . . . . Protection 14 | . 1 1 4 8 Artifact . | . . . . . Weapon 34 | . 4 3 10 17 Energy Gun 24 | . 3 2 8 11 Energy Cannon 2 | . . 1 1 . Ballistic Gun 2 | . 1 . 1 . Ballistic Cannon 1 | . . . . 1 Launcher 4 | . . . . 4 Special Weapon . | . . . . . Impact Weapon . | . . . . . Slashing Weapon 1 | . . . . 1 Piercing Weapon . | . . . . . Special Melee Weapon . | . . . . . Unidentified Prototypes 5 | . . 2 2 1 Parts Lost 21 | . . 2 1 18 Power 6 | . . 1 . 5 Propulsion 5 | . . . . 5 Utility 7 | . . 1 1 5 Weapon 3 | . . . . 3 Highest Loss Streak 9 | . . 1 1 9 To Critical Strikes . | . . . . . Average Slot Usage (%) 98 | . 96 96 99 98 Engine 5 | . 14 10 4 . Core 3 | . . . 4 5 Treads 1 | . . 5 4 . Leg 27 | . 28 25 21 29 Device 10 | . . 5 9 15 Storage 9 | . 14 11 9 7 Processor 9 | . . 10 9 11 Protection 10 | . 11 5 17 9 Energy Gun 16 | . 25 16 11 14 Energy Cannon 2 | . . 4 6 . Naked Turns . | . . . . . Heaviest Build 56 | 13 26 37 52 56 Greatest Support 80 | 20 20 40 62 80 Greatest Overweight (x) 2 | . 1 1 2 1 Average Overweight (x) . | . . . . . Largest Inventory Capacity 15 | 8 10 15 15 15 Average Capacity 13 | 8 8 11 15 15 Most Carried 15 | 6 9 15 15 15 Average Carried 12 | 6 7 11 14 14 Final Capacity 15 | 8 10 15 15 15 Final Carried 15 | 6 9 15 15 13 Class Distribution -------------------- 62% | Mutant 28% | Skirmisher 5% | Infiltrator-Skirmisher Dominant Class ---------------- Mutant | -10/Materials Mutant | -9/Materials Mutant | -8/Materials Skirmisher | -7/Factory Resources | -11 -10 -9 -8 -7 ----------- Run | Scr Mat Mat Mat Fac Matter Collected 1704 | 200 342 165 196 801 Remotely . | . . . . . Salvage Created 4509 | . 625 1039 1039 1806 Parts 259 | . 49 69 53 88 Haulers Intercepted 9 | . 2 3 1 3 Recyclers Shooed 12 | . 4 3 4 1 Parts Field Recycled . | . . . . . Retrieved Matter . | . . . . . Parts Self-Destructed . | . . . . . Prevented . | . . . . . Kills | -11 -10 -9 -8 -7 ------- Run | Scr Mat Mat Mat Fac Combat Hostiles Destroyed 93 | . 13 18 24 38 Guns 71 | . 13 11 20 27 Cannons 8 | . . 4 4 . AOE 10 | . . 3 . 7 Classes Destroyed 14 | . 6 3 2 3 Worker 1 | . . 1 . . Builder 6 | . 1 1 . 4 Hauler 9 | . 2 3 1 3 Recycler 6 | . 1 2 1 2 Operator 1 | . . . 1 . Watcher 9 | . 2 2 3 2 Swarmer 15 | . 5 1 4 5 Grunt 46 | . 8 12 11 15 Brawler 5 | . . 1 2 2 Duelist 1 | . . . . 1 Protector 1 | . . . . 1 Sentry 15 | . . 4 5 6 Hunter 3 | . . . 2 1 Programmer 7 | . . . . 7 Best Kill Streak 8 | . 4 8 4 6 Combat Bots Only 6 | . 3 4 4 6 Max Kills in Single Turn 3 | . 1 3 2 2 Gunslinging . | . . . . . Exploded 2 | . . 2 . 2 Melee . | . . . . . Uniques/NPCs Destroyed . | . . . . . Combat | -11 -10 -9 -8 -7 -------- Run | Scr Mat Mat Mat Fac Damage Taken 6105 | . 436 588 1060 4021 Core 1006 | . 74 46 166 720 Absorbed by Shields . | . . . . . Core Remaining (%) 81 | 100 70 88 69 . Volleys Fired 259 | . 38 52 68 101 Largest 2 | . 2 2 2 2 Hottest 160 | . 90 133 160 160 Shots Fired 472 | . 76 80 136 180 Gun 396 | . 76 65 87 168 Cannon 64 | . . 15 49 . Launcher 12 | . . . . 12 Special . | . . . . . Kinetic 16 | . 16 . . . Thermal 368 | . 16 48 136 168 Explosive 12 | . . . . 12 Electromagnetic 76 | . 44 32 . . Robot Hit Streak 31 | . 10 24 31 23 Robot Miss Streak 8 | . 3 4 8 5 Penetration Max . | . . . . . Secondary Targets . | . . . . . Shots Hit Robots 391 | . 53 71 108 159 Core Hits 375 | . 32 80 122 141 Critical Kills . | . . . . . Critical Parts Destroyed . | . . . . . Critical Strikes . | . . . . . Melee Attacks 3 | . . . . 3 Impact . | . . . . . Slashing 3 | . . . . 3 Piercing . | . . . . . Sneak Attacks . | . . . . . Combat Hostiles . | . . . . . Follow-up Attacks . | . . . . . Damage Inflicted 9116 | . 840 1281 2172 4823 Guns 6681 | . 765 932 1598 3386 Cannons 745 | . . 187 558 . Explosions 1459 | . 72 145 . 1242 Melee . | . . . . . Ramming 231 | . 3 17 16 195 Kinetic 150 | . 150 . . . Thermal 6545 | . 184 819 2156 3386 Explosive 1242 | . . . . 1242 Electromagnetic 948 | . 503 445 . . Impact . | . . . . . Slashing . | . . . . . Piercing . | . . . . . Highest Corruption 13 | . 2 1 . 13 Average Corruption 4 | . 1 1 . 5 Corruption Purged . | . . . . . Corruption Blocked . | . . . . . Effects 69 | . 5 4 . 60 Message Errors 19 | . 1 1 . 17 Matter Fused 18 | . 1 . . 17 Heat Flow Errors 5 | . . . . 5 Energy Discharges 9 | . 2 . . 7 Data Loss (minor) 9 | . . 2 . 7 Data Loss (major) 2 | . . . . 2 Misfires 3 | . . . . 3 Alerts 2 | . 1 . . 1 Weapon Failures 2 | . . 1 . 1 Overload Shots . | . . . . . Overflow Damage 7 | . . . . 7 Projectiles . | . . . . . Explosions 3 | . . . . 3 Melee 4 | . . . . 4 Knockbacks 1 | . . . . 1 Impact 1 | . . . . 1 Kinetic . | . . . . . Secondary . | . . . . . Self-Inflicted Damage 328 | . 13 61 . 254 Shots 10 | . 2 2 . 6 Rammed . | . . . . . Targets Rammed 25 | . 2 1 3 19 Kicked 25 | . 2 1 3 19 Crushed . | . . . . . Highest Temperature 493 | . 210 243 264 493 Average Temperature 87 | . 64 63 82 109 Received Heat Transfer 1401 | . 132 192 387 690 Effects 5 | . . 1 . 4 Shutdowns 1 | . . . . 1 Energy Bleed 1 | . . . . 1 Interference 1 | . . 1 . . Short Circuit 1 | . . . . 1 Damage (minor) 1 | . . . . 1 Siege Activations . | . . . . . Robots Corrupted . | . . . . . Combat Hostiles . | . . . . . Parts Fried 2 | . 2 . . . Impact Corruptions 1 | . . . . 1 Robots Melted 5 | . . . 1 4 Combat Hostiles 4 | . . . . 4 Parts Melted 36 | . . 3 6 27 Heat Transferred 12612 | . 433 1198 3769 7212 Parts Sabotaged . | . . . . . Parts Stolen . | . . . . . Parts Stripped . | . . . . . Power Chain Reactions 4 | . 2 2 . . Missiles Intercepted . | . . . . . Alert | -11 -10 -9 -8 -7 ------- Run | Scr Mat Mat Mat Fac Peak Influence 713 | . 305 420 526 713 Initial 238 | . . 67 147 238 Average 344 | . 124 272 347 448 Maximum Alert Level 3 | . 1 2 2 3 Low Security (%) 21 | 100 87 23 12 . Level 1 49 | . 12 62 65 51 Level 2 28 | . . 13 21 47 Level 3 . | . . . . . Level 4 . | . . . . . Level 5 . | . . . . . High Security . | . . . . . Max Security . | . . . . . Squads Dispatched 19 | . 3 2 2 12 Investigation 7 | . 2 2 1 2 Extermination 5 | . . . . 5 Reinforcement 6 | . 1 . 1 4 Assault 1 | . . . . 1 Garrison . | . . . . . Intercept . | . . . . . Searches Triggered . | . . . . . Construction Impeded 1 | . . . . 1 Haulers Reinforced 1 | . . . . 1 Active Scanning Responses . | . . . . . Cargo Convoy Interrupts . | . . . . . Stealth | -11 -10 -9 -8 -7 --------- Run | Scr Mat Mat Mat Fac Distress Signals 5 | . . 1 3 1 Communications Jammed 20 | . . . . 20 Distress Signals 16 | . . . . 16 Times Spotted 130 | . 19 25 37 49 Peak Tracking Total 6 | . 5 4 5 6 Tactical Retreats 7 | . 1 2 3 1 Traps | -11 -10 -9 -8 -7 ------- Run | Scr Mat Mat Mat Fac Traps Triggered 11 | . 2 2 . 7 Indirectly . | . . . . . Trap Hack Attempts . | . . . . . Triggered . | . . . . . Disarmed . | . . . . . Reprogrammed . | . . . . . Reused . | . . . . . Traps Extracted . | . . . . . Installed . | . . . . . Triggered . | . . . . . Machines | -11 -10 -9 -8 -7 ---------- Run | Scr Mat Mat Mat Fac Machines Disabled 1 | . 1 . . . Max in Single Turn 1 | . 1 . . . Garrison Access 1 | . . . . 1 Machines Sabotaged . | . . . . . Garrisons Compromised . | . . . . . Overloaded Fab Kills . | . . . . . Hacking | -11 -10 -9 -8 -7 --------- Run | Scr Mat Mat Mat Fac Machines Accessed 26 | . 6 4 8 8 Terminals 19 | . 5 2 6 6 Fabricators . | . . . . . Repair Stations . | . . . . . Recycling Units 3 | . 1 . 1 1 Scanalyzers 3 | . . 2 1 . Garrison Access 1 | . . . . 1 Total Hacks 72 | . 14 11 31 16 Successful 42 | . 10 8 19 5 Failed 30 | . 4 3 12 11 Catastrophic 6 | . . . 3 3 Database Lockouts . | . . . . . Manual 42 | . 10 3 19 10 Terminals 50 | . 12 5 20 13 Fabricators . | . . . . . Repair Stations . | . . . . . Recycling Units 8 | . 2 . 5 1 Scanalyzers 12 | . . 6 6 . Garrison Access 2 | . . . . 2 Terminal Hacks 12 | . 6 . 4 2 Part Schematic 2 | . 2 . . . Level Access Points 1 | . 1 . . . Branch Access Points 2 | . 1 . . 1 Emergency Access Points 1 | . . . 1 . Terminal Index 2 | . 1 . 1 . Alert Level 3 | . 1 . 1 1 Zone Layout 1 | . . . 1 . Fabricator Hacks . | . . . . . Repair Station Hacks . | . . . . . Recycling Unit Hacks 3 | . 1 . 2 . Report Inventory 2 | . 1 . 1 . Retrieve Components 1 | . . . 1 . Scanalyzer 12 | . . 6 6 . Insert Component 6 | . . 3 3 . Analyze 6 | . . 3 3 . Garrison Access Hacks 1 | . . . . 1 Seal Access 1 | . . . . 1 Unauthorized Hacks 14 | . 3 2 7 2 Terminals 10 | . 2 2 5 1 Track 1 | . . . 1 . Botnet 9 | . 2 2 4 1 Fabricators . | . . . . . Repair Stations . | . . . . . Recycling Units 4 | . 1 . 2 1 Mask 1 | . . . 1 . Tunnel 3 | . 1 . 1 1 Scanalyzers . | . . . . . Garrison Access . | . . . . . Data Cores Recovered . | . . . . . Used . | . . . . . Hacking Detections 21 | . 4 4 7 6 Full Trace Events 3 | . 1 1 . 1 Feedback Events 2 | . . 1 . 1 Corruption 2 | . . 1 . 1 Feedback Blocked . | . . . . . Robot Schematics Acquired . | . . . . . Robots Built . | . . . . . Authchips . | . . . . . Time . | . . . . . Total Robot Build Rating . | . . . . . Part Schematics Acquired 7 | . 2 2 3 . Parts Built . | . . . . . Authchips . | . . . . . Time . | . . . . . Total Part Build Rating . | . . . . . Parts Repaired . | . . . . . Time . | . . . . . Parts Recycled . | . . . . . Recycled Matter . | . . . . . Retrieved Matter . | . . . . . Retrieved Components 10 | . . . 10 . Parts Scanalyzed 5 | . . 2 3 . Part Schematics Acquired 5 | . . 2 3 . Parts Damaged 1 | . . . 1 . Bothacking | -11 -10 -9 -8 -7 ------------ Run | Scr Mat Mat Mat Fac Used RIF Installer . | . . . . . Robots Hacked . | . . . . . Non-combat . | . . . . . Combat . | . . . . . Robot Hacks Applied . | . . . . . Relay Couplers Released . | . . . . . Fabnet Peak Effective % . | . . . . . Robots Rewired . | . . . . . Allies Hacked . | . . . . . Hacks Repelled . | . . . . . Allies | -11 -10 -9 -8 -7 -------- Run | Scr Mat Mat Mat Fac Total Allies . | . . . . . Largest Group . | . . . . . Highest-Rated Group . | . . . . . Highest-Rated Ally . | . . . . . Total Orders . | . . . . . Ally Attacks . | . . . . . Total Damage . | . . . . . Kills . | . . . . . Allies Corrupted . | . . . . . Allies Melted . | . . . . . Intel | -11 -10 -9 -8 -7 ------- Run | Scr Mat Mat Mat Fac Robot Analysis Total . | . . . . . Derelict Logs Recovered . | . . . . . Drone Launches . | . . . . . Drone Recoveries . | . . . . . Exploration | -11 -10 -9 -8 -7 ------------- Run | Scr Mat Mat Mat Fac Turns Passed 6793 | 34 1131 1027 1418 3183 Spaces Moved 3590 | 29 551 548 644 1818 Core . | . . . . . Treads 242 | . . 136 106 . Legs 3348 | 29 551 412 538 1818 Wheels . | . . . . . Hover . | . . . . . Flight . | . . . . . Fastest Speed 120 | 120 120 120 123 122 Average Speed 142 | 120 171 145 160 126 Slowest Speed 260 | 120 190 240 260 200 Overloaded Moves . | . . . . . Propulsion Burnouts . | . . . . . Robots Hopped . | . . . . . Cave-ins Triggered . | . . . . . Exploration Rate (%) 48 | 2 90 45 58 48 Regions Visited 4 Branch Regions . Pre-discovered Areas 3 | . 1 . 1 1 Known Exits Taken 1 | . 1 . . . Unknown Exits Taken 3 | 1 . 1 1 . Scrap Searched . | . . . . . Spaces Dug 16 | . . . . 16 Terrain Destroyed 88 | . 4 6 . 78 Melee 3 | . . . . 3 Projectile . | . . . . . AOE 85 | . 4 6 . 75 Terrain Rammed . | . . . . . Walls Destroyed . | . . . . . Machines Disabled . | . . . . . Actions | -11 -10 -9 -8 -7 --------- Run | Scr Mat Mat Mat Fac Total 4754 | 28 666 699 891 2470 Wait 610 | . 40 57 104 409 Move 3586 | 28 550 547 643 1818 Hop . | . . . . . Pick Up 66 | . 12 12 17 25 Fast Attach 33 | . 3 6 11 13 Attach 19 | . . 4 6 9 Detach . | . . . . . Swap 62 | . 6 7 9 40 Drop 89 | . 15 13 30 31 Fire 259 | . 38 52 68 101 Melee 3 | . . . . 3 Ram . | . . . . . Kick 25 | . 2 1 3 19 Crush . | . . . . . Escape Stasis 2 | . . . . 2 Rewire . | . . . . . Trap . | . . . . . Miscellaneous . | . . . . . Route ------- -11/Scrapyard -10/Materials (discovered 5 exits: *Mat x3 / *Min x2) -9/Materials (discovered 3 exits: *Mat / [*Min] / [*Sto]) -8/Materials -7/Factory (discovered 4 exits: *Fac x2 / Low x2) History --------- Turn | Location | Event 1 | -11/Scrapyard | Discovered new exit (range 3) 35 | -11/Scrapyard | Entered Materials 293 | -10/Materials | Discovered new exit (range 14) 317 | -10/Materials | Build established: Mutant 543 | -10/Materials | Discovered new exit (range 14) 907 | -10/Materials | Discovered new exit (range 5) 1104 | -10/Materials | Identified exit to Mines 1104 | -10/Materials | Identified exit to Materials 1166 | -10/Materials | Entered another Materials area 1166 | -9/Materials | Evolved 2 slots: Propulsion x1, Utility x1 1476 | -9/Materials | Discovered new exit (range 7) 1640 | -9/Materials | Discovered new exit (range 12) 2149 | -9/Materials | Discovered new exit (range 16) 2193 | -9/Materials | Entered another Materials area 2193 | -8/Materials | Evolved 2 slots: Utility x2 3536 | -8/Materials | Discovered new exit (range 15) 3611 | -8/Materials | Entered Factory 3611 | -7/Factory | Evolved 2 slots: Propulsion x1, Utility x1 4490 | -7/Factory | Discovered new exit (range 14) 4521 | -7/Factory | Build established: Skirmisher 4538 | -7/Factory | Identified exit to Factory 6011 | -7/Factory | First assault squad dispatched 6029 | -7/Factory | Identified exit to Lower Caves 6165 | -7/Factory | System corruption reached 10% 6526 | -7/Factory | Build established: Infiltrator-Skirmisher 6540 | -7/Factory | Discovered exit to Factory (range 7) 6768 | -7/Factory | Core integrity fell below 50% 6789 | -7/Factory | Core integrity fell below 20% 6794 | -7/Factory | Destroyed self with Improved Grenade Launcher Last Messages --------------- 06771_ K-01 Serf collects debris. 06772_ Knocked back. 06774_ K-01 Serf cleans the Terminal. 06774_ Transmission Jammer destroyed. 06774_ Imp. Titanium Leg destroyed. 06775_ K-01 Serf collects debris. 06775_ Hrd. Medium Armor Plating severed. 06776_ Acquired Lgt. Nuclear Core. 06777_ K-01 Serf cleans the Terminal. 06777_ Gatling Laser destroyed. 06777_ Knocked back. 06780_ R-06 Scavenger collects Aluminum Leg. 06782_ Lgt. Nuclear Core destroyed. 06783_ R-06 Scavenger collects Hrd. Medium Armor Plating. 06784_ Particle Charger destroyed. 06786_ Imp. Carbon-fiber Leg destroyed. 06792_ S-27 Virus destroyed. 06792_ U-05 Engineer destroyed. 06794_ Gatling Laser destroyed. 06794_ L-41 Fighter destroyed. Map ----- +----------------------------------------------------+ | ?????????????????????????????????????????????????? | | ?????????????????????????????????????????????????? | | ?????????????????????????????????????????????????? | | ?????????????????????????????????????????????????? | | ????????????????????? ???????????????????????? | | ????????????????????? ????????????>??????????? | | ????????????????????? ???????????????????????? | | ????????????????????? ???????????????????????? | | ?????????????????????# #???????????????????????? | | ?????????????????????# #???????????????????????? | | ?????????????????????# #???????????????????????? | | ?????????????????????# #???????????????????????? | | ????????????????????## ##??????????????????????? | | ????????????????????# #??????????????????????? | | ???????????????????? H #??????????????????????? | | ????????????????????? #??????????????????????? | | ????????????????????? #??????????????????????? | | ?????????????????????? % #??????????????????????? | | ?????????????????????## ##???????????????????????? | | ?????????????????????## #????????????????????????? | | ?????????????????????## #?????????????? ?????????? | | ?????????????????????##=#????????????? ?????????? | | ?????????????????????# k## ########## ?????????? | | ????????????????????# # ######### #????????? | | ??????????????????? ##!!Y #????????? | | ??????????????????? ## !%@ w#????????? | | ??????????????# %=! """ ????????? | | ??????????????# # """ ??????????? | | ??????????????# ???##" """ #?????????????? | | ????????????????????##" ##??????????????? | | ????????????????????##" """ ##??????????????? | | ????????????????????##T """ ##??????????????? | | ????????????????????##" """ !##??????????????? | | ????????????????????##" r ##??????????????? | | ????????????????????##" ""##??????????????? | | ????????????????????### T"##??????????????? | | ####################### ""##??????????????? | | ####################### ##??????????????? | | # + ##??????????????? | | # ##########+######## ##??????????????? | | # ####### ### ##??????????????? | | # ! ##????# ###+#######?????????? | | # """ ##????# # ] #?????????? | | # """"" ##????# # #?????????? | | # """"" ##????# # ! #?????##### | | + ##???## !!# ####### # | | # """ ##???## !!# """ """ + # | | # " " """"" ##???## # """%""" ####### !# | | # "Y" """"" ##???############ """ """ #?????## ## | | # """ ^%##???############ ####???# #? | +----------------------------------------------------+ Best States ------------- Heat Dissipation 56 Coolant Potential 65 Energy Generation 15 Energy Capacity 280 Matter Stores 300 Matter Capacity 300 Sight Range 20 Robot Scan Range 15 Terrain Scan Density 10 Jamming Range 12 Armor Coverage 525 Resistance: KI 20 Evasion (%) 55 Targeting Accuracy 8 Recoil Reduction 3 Particle Charging 15 Item Schematics ----------------- Lrg. Storage Unit | -10/Materials | Hacked Hcp. Storage Unit | -10/Materials | Hacked Sensor Array | -9/Materials | Scanalyzed Structural Scanner | -9/Materials | Scanalyzed Aluminum Leg | -8/Materials | Scanalyzed Hcp. Battery | -8/Materials | Scanalyzed Imp. Light Cannon | -8/Materials | Scanalyzed Robot Schematics ------------------ None Fabricated ------------ Nothing Alien Tech Used ----------------- None Achievements -------------- None Challenges ------------ None Game ------ Seed MomentumGravmagShearcannon Manual? 0 Play Time 01:08:55 Cumulative 142.8 hours Start 2022.06.04 @ 19:46:49 End 2022.06.05 @ 13:13:12 Sessions 3 Manual Loads 0 Difficulty Rogue Special Mode None Game No. 61 Rogue 58 Adventurer 3 Explorer 0 Win Type - Total 4 Types 3/0/1/0/0/0/0/0/0 Lore% 44 Gallery% 68 Achievement% 71 Wizard Run 0 Options --------- ASCII 0 Keyboard 0 Movement Numpad Keybinds 0 Fullscreen 1 Font 24/Smallcaps Map View 76x50 Tactical HUD 1 Map Filters NONE Filters LOW_CONTRAST(13,24,33) Steam 1 RUN: 5d0d8e6a-b256-42bb-8180-f7bdea7ef74b